Cogmind - Beta 10.2 @@@ ROGUE MODE // 2021.09.26 @ 10:23:14 Player: Rathori Result: Destroyed by G-50 Soldier with Heavy Laser Performance ------------- Evolutions (4) 2000 Regions Visited (13) 2600 Robots Destroyed (166) 830 Value Destroyed (4613) 4613 Prototype IDs (10) 200 Alien Tech Used (0) 0 Bonus (1302) 1302 TOTAL SCORE: 11545 Bonus ------- High Alert Combat Kills 793 Follower Combat Kills 273 Met Data Miner 300 Friendly Fire -64 Cogmind --------- Core Integrity 0/850 Matter 247/300 Energy 100/100 System Corruption 0% Temperature Cool (9) Movement Hovering (60) Location -5/Proximity Caves Parts ------- > --- POWER (1) -------- (None) > --- PROPULSION (4) --- Gravmag System > --- UTILITY (8) ------ Improved Heat Sink Enhanced Optical Array Advanced Signal Interpreter Improved Target Analyzer Hacking Suite > --- WEAPON (2) ------- (None) > --- INVENTORY (4) ---- Large Storage Unit Transmission Jammer HERF Cannon Peak State ------------ > --- POWER ------------ Light Nuclear Core > --- PROPULSION ------- Carbon-fiber Leg Improved Carbon-fiber Leg Improved Titanium Leg Flexi-carbon Leg > --- UTILITY ---------- Large Storage Unit Enhanced Optical Array Long-range Sensor Array Advanced Signal Interpreter Advanced Terrain Scan Processor Transmission Jammer Hacking Suite System Shield > --- WEAPON ----------- HERF Cannon Gauss Rifle > --- INVENTORY -------- Improved Heat Sink Advanced Sensor Array Advanced Terrain Scanner Kinecellerator Gauss Rifle Flak Gun Flak Gun Mini Grenade Launcher Improved Datajack Remote Datajack [Rating: 58] Favorites ----------- Power F-cell Engine Engine F-cell Engine Power Core Light Nuclear Core Propulsion Aluminum Leg Treads Light Treads Leg Aluminum Leg Hover Unit Gravmag System Utility Medium Storage Unit Device Transmission Jammer Storage Medium Storage Unit Processor Signal Interpreter Hackware Hacking Suite Protection Medium Reactive Plating Weapon Improved Assault Rifle Energy Gun Heavy EM Shotgun Energy Cannon Advanced Beam Cannon Ballistic Gun Improved Assault Rifle Launcher Mini Grenade Launcher Special Weapon Remote Datajack Special Melee Weapon Datajack Build | -11 -10 -10 -9 -9 -9 -7 -7 -7 -6 -6 -6 -6 -5 ------- Run | Scr Mat Min Mat Sto Rec Fac Was Fac Fac Low Low Dat Pro Slots Evolved 8 | . . . 2 . . 4 . . 2 . . . . Power . | . . . . . . . . . . . . . . Propulsion 2 | . . . 1 . . 1 . . . . . . . Utility 6 | . . . 1 . . 3 . . 2 . . . . Weapon . | . . . . . . . . . . . . . . Parts Attached 194 | . 24 8 34 26 1 43 1 25 12 8 7 . 5 Power 18 | . 3 1 3 5 . 2 . 2 . 1 . . 1 Engine 13 | . 3 1 3 5 . 1 . . . . . . . Core 5 | . . . . . . 1 . 2 . 1 . . 1 Reactor . | . . . . . . . . . . . . . . Propulsion 50 | . 5 1 11 8 . 14 . 8 1 1 . . 1 Treads 8 | . . . 5 3 . . . . . . . . . Leg 39 | . 5 1 6 5 . 12 . 8 1 1 . . . Wheel . | . . . . . . . . . . . . . . Hover 3 | . . . . . . 2 . . . . . . 1 Flight . | . . . . . . . . . . . . . . Utility 38 | . 5 . 3 2 . 6 1 5 9 2 5 . . Device 18 | . . . 1 . . 4 . 3 7 1 2 . . Storage 6 | . 2 . 1 . . 1 . 1 . . 1 . . Processor 11 | . 3 . 1 1 . 1 1 1 1 1 1 . . Hackware 2 | . . . . 1 . . . . 1 . . . . Protection 1 | . . . . . . . . . . . 1 . . Artifact . | . . . . . . . . . . . . . . Weapon 88 | . 11 6 17 11 1 21 . 10 2 4 2 . 3 Energy Gun 6 | . 2 . 2 . . 2 . . . . . . . Energy Cannon 14 | . . . 3 5 . 1 . 2 . 1 1 . 1 Ballistic Gun 46 | . 6 3 8 5 . 11 . 7 1 2 1 . 2 Ballistic Cannon . | . . . . . . . . . . . . . . Launcher 14 | . . 2 3 1 1 5 . 1 . 1 . . . Special Weapon 1 | . . . . . . 1 . . . . . . . Impact Weapon . | . . . . . . . . . . . . . . Slashing Weapon . | . . . . . . . . . . . . . . Piercing Weapon . | . . . . . . . . . . . . . . Special Melee Weapon 7 | . 3 1 1 . . 1 . . 1 . . . . Unidentified Prototypes 6 | . . . 2 3 . . . 1 . . . . . Parts Lost 47 | . 3 . 5 1 . 11 1 7 . 16 . . 3 Power 7 | . 1 . 1 . . 1 . 1 . 2 . . 1 Propulsion 18 | . . . 4 . . 7 . 2 . 5 . . . Utility 9 | . . . . . . 1 1 1 . 5 . . 1 Weapon 13 | . 2 . . 1 . 2 . 3 . 4 . . 1 Highest Loss Streak 6 | . 2 . 2 1 . 6 1 2 . 6 . . 2 Average Slot Usage (%) 93 | . 95 100 97 98 100 93 99 99 100 88 43 46 46 Engine 7 | . 13 14 10 10 11 5 7 . . . . . . Core 1 | . . . . . . . . 6 6 2 . . 4 Treads 3 | . . . 9 12 . . . . . . . . . Leg 23 | . 27 28 21 20 33 24 30 29 26 20 . . . Device 4 | . . . . . . 14 7 6 13 12 7 6 6 Storage 9 | . 13 14 11 11 11 6 7 7 6 6 1 . . Processor 18 | . 10 14 21 17 11 15 22 23 20 22 22 26 25 Hackware 4 | . . . . 4 11 7 7 7 13 8 6 6 6 Energy Gun 1 | . 4 . 1 . . 1 7 4 . . . . . Energy Cannon 2 | . . . 6 3 . . . . 6 . . . . Ballistic Gun 12 | . 22 18 11 16 11 11 . 7 5 8 . . . Launcher 2 | . . 9 . . 10 . 7 . . 3 . . . Naked Turns . | . . . . . . . . . . . . . . Heaviest Build 40 | 10 18 20 25 31 31 29 21 37 39 40 21 21 8 Greatest Support 78 | 20 20 30 60 60 39 70 70 78 73 73 3 3 11 Greatest Overweight (x) 7 | . . . 1 1 . 5 . . . 7 6 6 2 Average Overweight (x) . | . . . . . . . . . . . . 6 1 Largest Inventory Capacity 10 | . 8 8 8 8 8 8 6 10 10 10 10 4 4 Average Capacity 7 | . 7 8 8 8 8 7 6 9 10 10 5 4 4 Most Carried 10 | . 8 8 8 8 8 8 6 10 10 10 6 4 4 Average Carried 7 | . 7 7 7 7 8 6 5 8 9 7 3 4 3 Final Capacity 10 | 6 8 8 8 8 8 6 6 10 10 10 4 4 4 Final Carried 10 | 6 8 8 8 8 8 6 6 10 10 7 4 4 3 Class Distribution -------------------- 50% | Mutant 31% | Scavenger-Mutant 12% | Skirmisher 4% | Hacker-Skirmisher Dominant Class ---------------- Mutant | -10/Materials Scavenger-Mutant | -10/Mines Scavenger-Mutant | -9/Materials Mutant | -9/Storage Mutant | -9/Recycling Mutant | -7/Factory Mutant | -7/Waste Skirmisher | -7/Factory Hacker-Skirmisher | -6/Factory Skirmisher | -6/Lower Caves Mutant | -6/Lower Caves Mutant | -6/Data Miner Mutant | -5/Proximity Caves Resources | -11 -10 -10 -9 -9 -9 -7 -7 -7 -6 -6 -6 -6 -5 ----------- Run | Scr Mat Min Mat Sto Rec Fac Was Fac Fac Low Low Dat Pro Matter Collected 4489 | 200 563 153 732 583 259 824 72 596 . 293 109 . 105 Remotely . | . . . . . . . . . . . . . . Salvage Created 5843 | . 593 49 1486 1125 295 1134 . 929 . 232 . . . Parts 369 | . 42 11 119 69 19 50 . 47 . 12 . . . Haulers Intercepted 13 | . 2 . 6 4 . 1 . . . . . . . Recyclers Shooed 3 | . . . . 2 . . . 1 . . . . . Parts Field Recycled . | . . . . . . . . . . . . . . Retrieved Matter . | . . . . . . . . . . . . . . Parts Self-Destructed 16 | . . . . . . . . . . 10 . . 6 Prevented . | . . . . . . . . . . . . . . Kills | -11 -10 -10 -9 -9 -9 -7 -7 -7 -6 -6 -6 -6 -5 ------- Run | Scr Mat Min Mat Sto Rec Fac Was Fac Fac Low Low Dat Pro Combat Hostiles Destroyed 125 | . 16 7 31 16 10 24 . 14 . 7 . . . Guns 82 | . 16 . 17 13 6 14 . 13 . 3 . . . Cannons 10 | . . . 5 3 . . . . . 2 . . . AOE 32 | . . 7 9 . 4 9 . 1 . 2 . . . Classes Destroyed 15 | . 4 . 7 . 1 2 . 1 . . . . . Worker 4 | . . . 2 . . 2 . . . . . . . Builder 4 | . . . 1 1 . 1 . 1 . . . . . Tunneler 1 | . . . 1 . . . . . . . . . . Hauler 13 | . 2 . 6 4 . 1 . . . . . . . Recycler 8 | . . . 1 2 1 1 . 3 . . . . . Operator 1 | . . . 1 . . . . . . . . . . Drone 10 | . . . . . 10 . . . . . . . . Watcher 10 | . 2 . 5 2 . . . 1 . . . . . Swarmer 34 | . 6 6 12 . . 3 . 3 . 4 . . . Grunt 48 | . 10 1 8 8 . 15 . 4 . 2 . . . Brawler 2 | . . . 1 1 . . . . . . . . . Duelist 1 | . . . . . . 1 . . . . . . . Sentry 21 | . . . 10 7 . 2 . 2 . . . . . Hunter 4 | . . . . . . . . 3 . 1 . . . Programmer 5 | . . . . . . 3 . 2 . . . . . Best Kill Streak 11 | . 4 3 11 4 4 5 . 3 . 4 . . . Combat Bots Only 7 | . 3 3 7 3 4 5 . 3 . 4 . . . Max Kills in Single Turn 6 | . 1 3 6 1 1 3 . 2 . 1 . . . Gunslinging . | . . . . . . . . . . . . . . Exploded 3 | . . 3 3 . 1 2 . 1 . 1 . . . Melee . | . . . . . . . . . . . . . . Uniques/NPCs Destroyed . | . . . . . . . . . . . . . . Combat | -11 -10 -10 -9 -9 -9 -7 -7 -7 -6 -6 -6 -6 -5 -------- Run | Scr Mat Min Mat Sto Rec Fac Was Fac Fac Low Low Dat Pro Damage Taken 8842 | . 786 127 1350 739 . 1916 70 1264 . 1746 . . 844 Core 1826 | . 129 . 166 116 . 330 6 224 . 448 . . 407 Absorbed by Shields . | . . . . . . . . . . . . . . Core Remaining (%) 49 | 100 . 48 . . 29 . . 20 . . . . . Volleys Fired 493 | . 82 7 99 79 55 73 3 58 . 33 . . 4 Largest 2 | . 2 2 2 2 2 2 2 2 . 2 . . 1 Hottest 131 | . 85 53 131 128 53 80 80 116 . 116 . . 28 Shots Fired 834 | . 151 11 179 135 60 119 6 106 . 63 . . 4 Gun 726 | . 151 7 134 111 53 106 3 102 . 55 . . 4 Cannon 66 | . . . 37 23 . . . 3 . 3 . . . Launcher 42 | . . 4 8 1 7 13 3 1 . 5 . . . Special . | . . . . . . . . . . . . . . Kinetic 625 | . 124 7 101 111 53 89 . 81 . 55 . . 4 Thermal 120 | . 27 . 70 23 . . . . . . . . . Explosive 42 | . . 4 8 1 7 13 3 1 . 5 . . . Electromagnetic 47 | . . . . . . 17 3 24 . 3 . . . Robot Hit Streak 16 | . 11 6 16 14 4 12 3 10 . 6 . . 4 Robot Miss Streak 11 | . 5 1 3 5 8 4 2 11 . 6 . . 1 Penetration Max 1 | . . . . . . 1 . . . . . . . Secondary Targets 3 | . . . . . . 1 . 2 . . . . . Max Gunslinging Chain 1 | . . . . . . 1 . 1 . . . . . Shots Hit Robots 558 | . 98 4 117 89 19 93 4 83 . 48 . . 3 Core Hits 332 | . 30 9 64 37 17 77 1 67 . 29 . . 1 Critical Hits 5 | . 1 . 2 . . 1 . 1 . . . . . Critical Kills 2 | . 1 . . . . 1 . . . . . . . Critical Parts Destroyed 2 | . . . 2 . . . . . . . . . . Melee Attacks 10 | . 7 1 1 . . 1 . . . . . . . Impact . | . . . . . . . . . . . . . . Slashing . | . . . . . . . . . . . . . . Piercing . | . . . . . . . . . . . . . . Sneak Attacks 10 | . 7 1 1 . . 1 . . . . . . . Combat Hostiles . | . . . . . . . . . . . . . . Follow-up Attacks . | . . . . . . . . . . . . . . Damage Inflicted 12427 | . 1086 510 2571 1623 739 3053 421 1523 . 854 . . 47 Guns 7202 | . 1086 62 1323 1177 307 1563 5 1158 . 474 . . 47 Cannons 1058 | . . . 514 399 . . . 77 . 68 . . . Explosions 4164 | . . 448 734 47 432 1487 416 288 . 312 . . . Melee . | . . . . . . . . . . . . . . Ramming 3 | . . . . . . 3 . . . . . . . Kinetic 6075 | . 808 62 950 1177 307 1341 . 909 . 474 . . 47 Thermal 2027 | . 278 . 887 399 . 216 . 247 . . . . . Explosive 3701 | . . 448 734 47 432 1271 416 41 . 312 . . . Electromagnetic 621 | . . . . . . 222 5 326 . 68 . . . Impact . | . . . . . . . . . . . . . . Slashing . | . . . . . . . . . . . . . . Piercing . | . . . . . . . . . . . . . . Highest Corruption 11 | . . . . . . 2 2 11 . . . . . Average Corruption 2 | . . . . . . 1 2 3 . . . . . Corruption Purged . | . . . . . . . . . . . . . . Effects 30 | . . . . . . 5 4 21 . . . . . Message Errors 13 | . . . . . . 2 2 9 . . . . . Matter Fused 1 | . . . . . . . . 1 . . . . . Heat Flow Errors 4 | . . . . . . 2 . 2 . . . . . Energy Discharges 5 | . . . . . . . 1 4 . . . . . Parts Rejected 1 | . . . . . . . . 1 . . . . . Data Loss (minor) 3 | . . . . . . 1 . 2 . . . . . Misfires 1 | . . . . . . . . 1 . . . . . Targeting Errors 2 | . . . . . . . 1 1 . . . . . Overload Shots 6 | . . . . 6 . . . . . . . . . Effects 1 | . . . . 1 . . . . . . . . . Meltdown 1 | . . . . 1 . . . . . . . . . Overflow Damage 173 | . . . 17 37 28 82 . 9 . . . . . Projectiles 38 | . . . 1 37 . . . . . . . . . Explosions 135 | . . . 16 . 28 82 . 9 . . . . . Melee . | . . . . . . . . . . . . . . Knockbacks . | . . . . . . . . . . . . . . Impact . | . . . . . . . . . . . . . . Kinetic . | . . . . . . . . . . . . . . Secondary . | . . . . . . . . . . . . . . Self-Inflicted Damage 340 | . . 46 61 . . 152 . 81 . . . . . Shots 10 | . . 1 4 . . 3 . 2 . . . . . Rammed 1 | . . . . . . 1 . . . . . . . Targets Rammed 1 | . . . . . . 1 . . . . . . . Kicked . | . . . . . . . . . . . . . . Crushed . | . . . . . . . . . . . . . . Highest Temperature 318 | . 294 13 318 132 . 251 . 186 . 24 . . . Average Temperature 75 | . 90 8 89 33 . 78 . 41 . 10 . . . Received Heat Transfer 1959 | . 246 33 372 210 . 654 18 165 . 225 . . 36 Effects 1 | . . . 1 . . . . . . . . . . Short Circuit 1 | . . . 1 . . . . . . . . . . Siege Activations . | . . . . . . . . . . . . . . Robots Corrupted 1 | . . . . . . 1 . . . . . . . Combat Hostiles 1 | . . . . . . 1 . . . . . . . Parts Fried 4 | . . . . . . 2 . 2 . . . . . Impact Corruptions . | . . . . . . . . . . . . . . Robots Melted . | . . . . . . . . . . . . . . Combat Hostiles . | . . . . . . . . . . . . . . Parts Melted 6 | . 3 . 2 1 . . . . . . . . . Heat Transferred 3365 | . 666 . 1739 560 . 150 . 250 . . . . . Parts Sabotaged . | . . . . . . . . . . . . . . Parts Stolen . | . . . . . . . . . . . . . . Parts Stripped . | . . . . . . . . . . . . . . Power Chain Reactions 5 | . . . . . . . . 5 . . . . . Missiles Intercepted . | . . . . . . . . . . . . . . Alert | -11 -10 -10 -9 -9 -9 -7 -7 -7 -6 -6 -6 -6 -5 ------- Run | Scr Mat Min Mat Sto Rec Fac Was Fac Fac Low Low Dat Pro Peak Influence 1414 | . 227 155 495 319 213 1414 507 376 184 . . . . Initial 935 | . . . 11 28 34 935 494 159 184 . . . . Average 255 | . 76 61 221 147 78 1137 434 167 184 . . . . Maximum Alert Level 4 | . 1 . 2 1 1 4 2 1 . . . . . Low Security (%) 66 | . 93 100 50 82 94 . . 72 100 . . . . Level 1 16 | . 6 . 35 17 5 . 5 27 . . . . . Level 2 6 | . . . 13 . . . 94 . . . . . . Level 3 4 | . . . . . . 39 . . . . . . . Level 4 6 | . . . . . . 60 . . . . . . . Level 5 . | . . . . . . . . . . . . . . High Security . | . . . . . . . . . . . . . . Max Security . | . . . . . . . . . . . . . . Squads Dispatched 21 | . 5 . 1 3 . 6 . 5 . . . . 1 Investigation 6 | . 1 . 1 1 . 1 . 2 . . . . . Extermination 4 | . . . . . . 2 . 2 . . . . . Reinforcement 9 | . 4 . . 2 . 2 . 1 . . . . . Assault 2 | . . . . . . 1 . . . . . . 1 Garrison . | . . . . . . . . . . . . . . Intercept . | . . . . . . . . . . . . . . Construction Impeded 1 | . . . . . . 1 . . . . . . . Haulers Reinforced . | . . . . . . . . . . . . . . Stealth | -11 -10 -10 -9 -9 -9 -7 -7 -7 -6 -6 -6 -6 -5 --------- Run | Scr Mat Min Mat Sto Rec Fac Was Fac Fac Low Low Dat Pro Distress Signals 6 | . 2 . 1 1 . 1 . 1 . . . . . Communications Jammed 7 | . . . . . . 7 . . . . . . . Distress Signals 7 | . . . . . . 7 . . . . . . . Times Spotted 233 | . 32 7 36 22 41 37 5 21 1 12 . . 19 Peak Tracking Total 17 | . 4 3 8 3 4 7 5 4 1 5 . . 17 Tactical Retreats 12 | . 2 . 2 . . 4 1 2 . . . . 1 Traps | -11 -10 -10 -9 -9 -9 -7 -7 -7 -6 -6 -6 -6 -5 ------- Run | Scr Mat Min Mat Sto Rec Fac Was Fac Fac Low Low Dat Pro Traps Triggered 11 | . 2 . 1 3 . 2 . 3 . . . . . Indirectly . | . . . . . . . . . . . . . . Trap Hack Attempts 85 | . 41 . 23 . . . . . 21 . . . . Triggered . | . . . . . . . . . . . . . . Disarmed 8 | . 2 . 6 . . . . . . . . . . Reprogrammed 2 | . . . 1 . . . . . 1 . . . . Reused 1 | . . . 1 . . . . . . . . . . Traps Extracted . | . . . . . . . . . . . . . . Installed . | . . . . . . . . . . . . . . Triggered 1 | . . . 1 . . . . . . . . . . Machines | -11 -10 -10 -9 -9 -9 -7 -7 -7 -6 -6 -6 -6 -5 ---------- Run | Scr Mat Min Mat Sto Rec Fac Was Fac Fac Low Low Dat Pro Machines Disabled 22 | . 1 1 2 6 1 2 . 9 . . . . . Max in Single Turn 8 | . 1 1 1 1 1 2 . 8 . . . . . Garrison Access 1 | . . . . . . . . 1 . . . . . Machines Sabotaged . | . . . . . . . . . . . . . . Garrisons Compromised . | . . . . . . . . . . . . . . Overloaded Fab Kills . | . . . . . . . . . . . . . . Fab Network Shutdowns . | . . . . . . . . . . . . . . Hacking | -11 -10 -10 -9 -9 -9 -7 -7 -7 -6 -6 -6 -6 -5 --------- Run | Scr Mat Min Mat Sto Rec Fac Was Fac Fac Low Low Dat Pro Machines Accessed 57 | . 7 . 14 13 11 2 . 6 . 1 . 3 . Terminals 31 | . 4 . 11 10 6 . . . . . . . . Fabricators 3 | . . . . . . 1 . 2 . . . . . Repair Stations 5 | . 1 . 1 1 . . . 2 . . . . . Recycling Units 13 | . 2 . 2 2 5 1 . 1 . . . . . Scanalyzers . | . . . . . . . . . . . . . . Garrison Access 1 | . . . . . . . . 1 . . . . . Total Hacks 170 | . 31 . 42 34 28 4 . 12 . 1 . 18 . Successful 125 | . 26 . 25 23 20 4 . 8 . 1 . 18 . Failed 45 | . 5 . 17 11 8 . . 4 . . . . . Catastrophic 3 | . . . 1 1 1 . . . . . . . . Database Lockouts . | . . . . . . . . . . . . . . Manual 98 | . 16 . 32 17 22 5 . 6 . . . . . Terminals 81 | . 12 . 31 22 16 . . . . . . . . Fabricators 4 | . . . . . . 1 . 3 . . . . . Repair Stations 25 | . 12 . 4 4 . . . 5 . . . . . Recycling Units 40 | . 7 . 7 8 12 3 . 3 . . . . . Scanalyzers . | . . . . . . . . . . . . . . Garrison Access 1 | . . . . . . . . 1 . . . . . Terminal Hacks 36 | . 3 . 5 6 3 . . . . 1 . 18 . Record 11 | . . . . . . . . . . . . 11 . Robot Schematic 7 | . . . . . . . . . . . . 7 . Prototype ID Bank 2 | . 1 . . . 1 . . . . . . . . Open Door 6 | . . . . 5 . . . . . 1 . . . Alert Level 1 | . . . . . 1 . . . . . . . . Unreport Threat 7 | . 2 . 4 1 . . . . . . . . . Disarm Traps 1 | . . . 1 . . . . . . . . . . Zone Layout 1 | . . . . . 1 . . . . . . . . Fabricator Hacks . | . . . . . . . . . . . . . . Repair Station Hacks 23 | . 12 . 4 4 . . . 3 . . . . . Scan Component 12 | . 6 . 2 2 . . . 2 . . . . . Repair 11 | . 6 . 2 2 . . . 1 . . . . . Recycling Unit Hacks 6 | . 2 . 2 1 1 . . . . . . . . Report Inventory 5 | . 1 . 2 1 1 . . . . . . . . Retrieve Components 1 | . 1 . . . . . . . . . . . . Scanalyzer . | . . . . . . . . . . . . . . Garrison Access Hacks 1 | . . . . . . . . 1 . . . . . Seal Access 1 | . . . . . . . . 1 . . . . . Unauthorized Hacks 59 | . 9 . 14 12 16 4 . 4 . . . . . Terminals 27 | . 5 . 10 7 5 . . . . . . . . Track 4 | . . . 1 2 1 . . . . . . . . Botnet 20 | . 4 . 8 4 4 . . . . . . . . Operators 3 | . 1 . 1 1 . . . . . . . . . Fabricators 3 | . . . . . . 1 . 2 . . . . . Siphon 1 | . . . . . . . . 1 . . . . . Overload 2 | . . . . . . 1 . 1 . . . . . Repair Stations . | . . . . . . . . . . . . . . Recycling Units 29 | . 4 . 4 5 11 3 . 2 . . . . . Reject 13 | . 2 . 2 2 5 1 . 1 . . . . . Recyclers 7 | . 1 . 1 2 1 1 . 1 . . . . . Mask 9 | . 1 . 1 1 5 1 . . . . . . . Scanalyzers . | . . . . . . . . . . . . . . Garrison Access . | . . . . . . . . . . . . . . Data Cores Recovered 1 | . . . 1 . . . . . . . . . . Used . | . . . . . . . . . . . . . . Hacking Detections 37 | . 7 . 13 8 4 1 . 4 . . . . . Full Trace Events 6 | . 1 . 1 3 . . . 1 . . . . . Feedback Events . | . . . . . . . . . . . . . . Feedback Blocked . | . . . . . . . . . . . . . . Robot Schematics Acquired 7 | . . . . . . . . . . . . 7 . Robots Built . | . . . . . . . . . . . . . . Matter . | . . . . . . . . . . . . . . Time . | . . . . . . . . . . . . . . Total Robot Build Rating . | . . . . . . . . . . . . . . Part Schematics Acquired . | . . . . . . . . . . . . . . Parts Built . | . . . . . . . . . . . . . . Matter . | . . . . . . . . . . . . . . Time . | . . . . . . . . . . . . . . Total Part Build Rating . | . . . . . . . . . . . . . . Parts Repaired 11 | . 6 . 2 2 . . . 1 . . . . . Time 327 | . 162 . 58 64 . . . 43 . . . . . Parts Recycled . | . . . . . . . . . . . . . . Recycled Matter . | . . . . . . . . . . . . . . Retrieved Matter . | . . . . . . . . . . . . . . Retrieved Components 10 | . 10 . . . . . . . . . . . . Parts Scanalyzed . | . . . . . . . . . . . . . . Part Schematics Acquired . | . . . . . . . . . . . . . . Parts Damaged . | . . . . . . . . . . . . . . Bothacking | -11 -10 -10 -9 -9 -9 -7 -7 -7 -6 -6 -6 -6 -5 ------------ Run | Scr Mat Min Mat Sto Rec Fac Was Fac Fac Low Low Dat Pro Used RIF Installer . | . . . . . . . . . . . . . . Robots Hacked 7 | . 5 1 . . . 1 . . . . . . . Non-combat 7 | . 5 1 . . . 1 . . . . . . . Combat . | . . . . . . . . . . . . . . Robot Hacks Applied 7 | . 5 1 . . . 1 . . . . . . . no_distress 4 | . 3 1 . . . . . . . . . . . find_recycling 1 | . 1 . . . . . . . . . . . . find_station 1 | . . . . . . 1 . . . . . . . check_alert 1 | . 1 . . . . . . . . . . . . Relay Couplers Released . | . . . . . . . . . . . . . . Robots Rewired . | . . . . . . . . . . . . . . Allies Hacked . | . . . . . . . . . . . . . . Hacks Repelled . | . . . . . . . . . . . . . . Allies | -11 -10 -10 -9 -9 -9 -7 -7 -7 -6 -6 -6 -6 -5 -------- Run | Scr Mat Min Mat Sto Rec Fac Was Fac Fac Low Low Dat Pro Total Allies 22 | . . 1 . . . . 20 . . . . . 1 Largest Group 19 | . . 1 1 . . . 19 4 . . . . 1 Highest-Rated Group 477 | . . 31 31 . . . 477 132 . . . . 94 Highest-Rated Ally 94 | . . 31 31 . . . 35 35 . . . . 94 Total Orders . | . . . . . . . . . . . . . . Ally Attacks 192 | . . . 4 . . . 170 10 . . . . 8 Total Damage 6397 | . . . 87 . . . 5859 133 . . . . 318 Kills 19 | . . . 1 . . . 16 . . . . . 2 Allies Corrupted 1 | . . . . . . . . 1 . . . . . Allies Melted . | . . . . . . . . . . . . . . Intel | -11 -10 -10 -9 -9 -9 -7 -7 -7 -6 -6 -6 -6 -5 ------- Run | Scr Mat Min Mat Sto Rec Fac Was Fac Fac Low Low Dat Pro Robot Analysis Total . | . . . . . . . . . . . . . . Derelict Logs Recovered 4 | . . 3 . . . . . . . . 1 . . Drone Launches . | . . . . . . . . . . . . . . Drone Recoveries . | . . . . . . . . . . . . . . Exploration | -11 -10 -10 -9 -9 -9 -7 -7 -7 -6 -6 -6 -6 -5 ------------- Run | Scr Mat Min Mat Sto Rec Fac Was Fac Fac Low Low Dat Pro Turns Passed 13707 | . 1869 787 2834 1772 1093 1193 425 1538 357 918 192 294 435 Spaces Moved 7536 | 1 942 608 1397 982 806 600 303 782 169 312 166 85 383 Core 507 | . . . . . . 2 . . . 6 166 85 248 Treads 513 | . . . 185 328 . . . . . . . . . Legs 6340 | 1 942 608 1212 654 806 557 303 782 169 306 . . . Wheels . | . . . . . . . . . . . . . . Hover 176 | . . . . . . 41 . . . . . . 135 Flight . | . . . . . . . . . . . . . . Fastest Speed 50 | 120 120 120 120 120 120 120 127 122 122 120 50 350 50 Average Speed 127 | 120 120 120 134 133 120 126 127 126 122 125 97 350 104 Slowest Speed 400 | 120 120 120 180 160 120 300 127 127 122 400 350 350 150 Overloaded Moves . | . . . . . . . . . . . . . . Propulsion Burnouts . | . . . . . . . . . . . . . . Robots Hopped . | . . . . . . . . . . . . . . Cave-ins Triggered . | . . . . . . . . . . . . . . Exploration Rate (%) 58 | 2 100 98 98 76 99 12 96 19 7 59 35 76 41 Regions Visited 13 Branch Regions 7 Pre-discovered Areas 2 | . . . . . . . . . . . 1 1 . Known Exits Taken 10 | . 1 1 1 1 1 . . 1 1 1 1 1 . Unknown Exits Taken 1 | 1 . . . . . . . . . . . . . Scrap Searched 6 | . . 1 . . . . . . . 2 3 . . Spaces Dug . | . . . . . . . . . . . . . . Terrain Destroyed 352 | . . 43 71 12 37 96 24 39 . 30 . . . Melee . | . . . . . . . . . . . . . . Projectile 8 | . . . . 5 . 1 . . . 2 . . . AOE 344 | . . 43 71 7 37 95 24 39 . 28 . . . Terrain Rammed . | . . . . . . . . . . . . . . Walls Destroyed . | . . . . . . . . . . . . . . Machines Disabled . | . . . . . . . . . . . . . . Actions | -11 -10 -10 -9 -9 -9 -7 -7 -7 -6 -6 -6 -6 -5 --------- Run | Scr Mat Min Mat Sto Rec Fac Was Fac Fac Low Low Dat Pro Total 10787 | . 1524 653 2172 1309 871 902 338 1228 317 776 200 84 413 Wait 2338 | . 404 25 592 206 10 165 26 342 108 423 19 . 18 Move 7524 | . 941 607 1396 981 805 600 302 781 168 311 165 84 383 Hop . | . . . . . . . . . . . . . . Pick Up 53 | . 13 1 8 2 . 7 4 11 4 1 2 . . Fast Attach 56 | . 6 . 11 10 . 15 . 8 . 2 2 . 2 Attach 31 | . 2 . 4 . . 6 1 4 2 4 5 . 3 Detach 5 | . 1 . . . . . . . . . 2 . 2 Swap 107 | . 16 8 19 16 1 22 . 13 10 2 . . . Drop 84 | . 11 4 19 15 . 12 2 11 4 . 5 . 1 Fire 493 | . 82 7 99 79 55 73 3 58 . 33 . . 4 Melee 10 | . 7 1 1 . . 1 . . . . . . . Ram . | . . . . . . . . . . . . . . Kick 1 | . . . . . . 1 . . . . . . . Crush . | . . . . . . . . . . . . . . Escape Stasis . | . . . . . . . . . . . . . . Rewire . | . . . . . . . . . . . . . . Trap 85 | . 41 . 23 . . . . . 21 . . . . Miscellaneous . | . . . . . . . . . . . . . . Route ------- -11/Scrapyard -10/Materials (discovered 4 exits: *Mat x3 / *Min) -10/Mines (discovered 2 exits: *Mat x2) -9/Materials (discovered 7 exits: *Mat x3 / *Min x2 / *Sto x2) -9/Storage (discovered 2 exits: *Mat / *Rec) -9/Recycling -7/Factory -7/Waste -7/Factory -6/Factory -6/Lower Caves -6/Lower Caves -6/Data Miner -5/Proximity Caves History --------- Turn | Location | Event 1 | -11/Scrapyard | Discovered new exit (range 0) 1 | -11/Scrapyard | Entered Materials 305 | -10/Materials | Build established: Mutant 379 | -10/Materials | Discovered new exit (range 11) 512 | -10/Materials | Discovered new exit (range 15) 674 | -10/Materials | Repaired Particle Gun 701 | -10/Materials | Repaired Assault Rifle 728 | -10/Materials | Repaired Aluminum Leg 756 | -10/Materials | Repaired Sensor Array 783 | -10/Materials | Repaired Med. Storage Unit 823 | -10/Materials | Repaired Aluminum Leg 988 | -10/Materials | Discovered new exit (range 13) 1005 | -10/Materials | Identified exit to Materials 1165 | -10/Materials | Discovered exit to Materials (range 13) 1501 | -10/Materials | Build established: Scavenger-Mutant 1504 | -10/Materials | Identified exit to Mines 1541 | -10/Materials | Core integrity fell below 50% 1870 | -10/Materials | Entered Mines 1894 | -10/Mines | Met a Derelict bent on vengeance 1935 | -10/Mines | Build established: Mutant 2000 | -10/Mines | Joined a pair of Derelicts in attacking an 0b10 outpost 2092 | -10/Mines | Assembled infested the area 2097 | -10/Mines | Assisted by a Guerilla fighting off Assembled 2098 | -10/Mines | Learned Materials garrison access intel 2128 | -10/Mines | Learned 4 Materials zone layouts 2324 | -10/Mines | Build established: Scavenger-Mutant 2522 | -10/Mines | Discovered exit to Materials (range 3) 2561 | -10/Mines | Received a Mining Laser from a helpful Derelict 2561 | -10/Mines | Discovered exit to Materials (range 8) 2657 | -10/Mines | Entered Materials 2657 | -9/Materials | Accompanied by 1 ally 2657 | -9/Materials | Evolved 2 slots: Propulsion x1, Utility x1 2658 | -9/Materials | Identified exit to Materials 2658 | -9/Materials | Identified exit to Storage 3097 | -9/Materials | Discovered new exit (range 6) 3102 | -9/Materials | Identified exit to Mines 3381 | -9/Materials | Destroyed 7 combat bots 3528 | -9/Materials | Repaired Imp. Aluminum Leg 3670 | -9/Materials | Repaired Sensor Array 3836 | -9/Materials | Discovered exit to Storage (range 7) 3898 | -9/Materials | Discovered exit to Mines (range 14) 4221 | -9/Materials | Build established: Mutant 4372 | -9/Materials | Discovered exit to Materials (range 16) 5074 | -9/Materials | Discovered exit to Materials (range 8) 5452 | -9/Materials | Build established: Scavenger-Mutant 5491 | -9/Materials | Entered Storage 5492 | -9/Storage | Identified exit to Recycling 5598 | -9/Storage | Core integrity fell below 50% 5972 | -9/Storage | Discovered exit to Materials (range 16) 6259 | -9/Storage | Repaired Imp. Aluminum Leg 6310 | -9/Storage | Repaired Rnf. Ion Engine 6449 | -9/Storage | Build established: Mutant 7263 | -9/Storage | Entered Recycling 7318 | -9/Recycling | Spotter reported a threat 7333 | -9/Recycling | Spotter reported a threat 7370 | -9/Recycling | Spotter reported a threat 7371 | -9/Recycling | Spotter reported a threat 7375 | -9/Recycling | Spotter reported a threat 7375 | -9/Recycling | Spotter reported a threat 7386 | -9/Recycling | Spotter reported a threat 7402 | -9/Recycling | Spotter reported a threat 7424 | -9/Recycling | Spotter reported a threat 7457 | -9/Recycling | Spotter reported a threat 7497 | -9/Recycling | Spotter reported a threat 7517 | -9/Recycling | Spotter reported a threat 7568 | -9/Recycling | Spotter reported a threat 7575 | -9/Recycling | Spotter reported a threat 7592 | -9/Recycling | Spotter reported a threat 7605 | -9/Recycling | Spotter reported a threat 7621 | -9/Recycling | Spotter reported a threat 7645 | -9/Recycling | Spotter reported a threat 7658 | -9/Recycling | Spotter reported a threat 7672 | -9/Recycling | Spotter reported a threat 7711 | -9/Recycling | Spotter reported a threat 7764 | -9/Recycling | Discovered new exit (range 8) 7773 | -9/Recycling | Identified exit to Factory 7815 | -9/Recycling | Spotter reported a threat 7825 | -9/Recycling | Spotter reported a threat 7868 | -9/Recycling | Spotter reported a threat 7882 | -9/Recycling | Spotter reported a threat 7884 | -9/Recycling | Spotter reported a threat 7935 | -9/Recycling | Spotter reported a threat 7937 | -9/Recycling | Spotter reported a threat 7938 | -9/Recycling | Spotter reported a threat 7948 | -9/Recycling | Spotter reported a threat 8001 | -9/Recycling | Spotter reported a threat 8077 | -9/Recycling | Spotter reported a threat 8078 | -9/Recycling | Spotter reported a threat 8090 | -9/Recycling | Spotter reported a threat 8131 | -9/Recycling | Spotter reported a threat 8186 | -9/Recycling | Spotter reported a threat 8221 | -9/Recycling | Spotter reported a threat 8239 | -9/Recycling | Spotter reported a threat 8274 | -9/Recycling | Spotter reported a threat 8277 | -9/Recycling | Spotter reported a threat 8285 | -9/Recycling | Spotter reported a threat 8326 | -9/Recycling | Spotter reported a threat 8356 | -9/Recycling | Entered Factory 8356 | -7/Factory | Evolved 4 slots: Propulsion x1, Utility x3 8756 | -7/Factory | First assault squad dispatched 8969 | -7/Factory | Lost 6 parts (1p4n1w) 9121 | -7/Factory | Discovered new exit (range 13) 9232 | -7/Factory | Lost 4 parts (2n1u1w) 9256 | -7/Factory | Build established: Scavenger-Mutant 9430 | -7/Factory | Identified exit to Lower Caves 9549 | -7/Factory | Sucked down chute 9549 | -7/Factory | Entered Waste 9550 | -7/Waste | Met a frightened Derelict 9570 | -7/Waste | Spotted C-40 Crusher 9575 | -7/Waste | Spotted C-40 Crusher 9586 | -7/Waste | Spotted C-40 Crusher 9620 | -7/Waste | Spotted C-40 Crusher 9622 | -7/Waste | Spotted C-40 Crusher 9635 | -7/Waste | Warlord forces began an assault 9642 | -7/Waste | Allies destroyed C-40 Crusher 9649 | -7/Waste | Allies destroyed C-40 Crusher 9652 | -7/Waste | Allies destroyed C-40 Crusher 9652 | -7/Waste | Spotted C-40 Crusher 9866 | -7/Waste | Build established: Mutant 9908 | -7/Waste | Discovered new exit (range 13) 9969 | -7/Waste | Identified exit to Factory 9974 | -7/Waste | Entered Factory 9974 | -7/Factory | Accompanied by 4 allies 10226 | -7/Factory | Core integrity fell below 50% 10533 | -7/Factory | Build established: Skirmisher 11331 | -7/Factory | Repaired Broken HERF Cannon 11479 | -7/Factory | System corruption reached 10% 11497 | -7/Factory | Discovered new exit (range 6) 11510 | -7/Factory | Identified exit to Factory 11512 | -7/Factory | Entered another Factory area 11512 | -6/Factory | Evolved 2 slots: Utility x2 11792 | -6/Factory | Discovered new exit (range 15) 11820 | -6/Factory | Identified exit to Lower Caves 11869 | -6/Factory | Entered Lower Caves 11980 | -6/Lower Caves | Build established: Hacker-Skirmisher 12255 | -6/Lower Caves | Lost 6 parts (2n2u2w) 12475 | -6/Lower Caves | Build established: Skirmisher 12673 | -6/Lower Caves | Lost 3 parts (1p1n1u) 12730 | -6/Lower Caves | Discovered new exit (range 17) 12782 | -6/Lower Caves | Encountered a Warlord checkpoint 12784 | -6/Lower Caves | Identified exit to Lower Caves 12787 | -6/Lower Caves | Entered another Lower Caves area 12788 | -6/Lower Caves | Core integrity fell below 50% 12812 | -6/Lower Caves | Lost 6 parts (2n2u2w) 12866 | -6/Lower Caves | Discovered new exit (range 19) 12876 | -6/Lower Caves | Identified exit to Data Miner 12979 | -6/Lower Caves | Entered Data Miner 12979 | -6/Data Miner | Discovered new exit (range 6) 12997 | -6/Data Miner | Identified exit to Proximity Caves 13042 | -6/Data Miner | Met Data Miner 13069 | -6/Data Miner | Build established: Mutant 13147 | -6/Data Miner | Learned location of Section 7 (-3) 13147 | -6/Data Miner | Acquired the access code to Warlord's prototype stash 13196 | -6/Data Miner | Received God Mode back door access code from Data Miner 13273 | -6/Data Miner | Entered Proximity Caves 13313 | -5/Proximity Caves | Escorted by Enhanced Grunt 13530 | -5/Proximity Caves | Received a Behemoth hack from an annoying Tinkerer 13625 | -5/Proximity Caves | Core integrity fell below 20% 13690 | -5/Proximity Caves | Attracted the attention of an 0b10 outpost 13708 | -5/Proximity Caves | Destroyed by G-50 Soldier with Heavy Laser Last Messages --------------- 13568_ AO-NO4(c): "I can write more where this came from, so this one's yours to play around with." 13597_ Penetrated by Slug. 13597_ Slug penetrates Wall. 13615_ AO-NO4(c): "Anyway, see you later!" 13615_ Slug penetrates Wall. 13615_ Penetrated by Slug. 13618_ AO-NO4(c): "Oh wait, I forgot to tell you what it does." 13620_ Slug penetrates AO-NO4(c). 13620_ AO-NO4(c) suffers critical hit. 13620_ AO-NO4(c) destroyed. 13620_ Slug penetrates Wall. 13624_ Lgt. Fission Core destroyed. 13624_ Acquired Gravmag System. 13690_ Y-72 Warden: "DETECTED UNIDENTIFIED DERELICT." 13691_ Slug penetrates Wall. 13693_ Adv. Terrain Scan Processor destroyed. 13694_ Y-72 Warden: "REQUESTING BACKUP." 13694_ Penetrated by Slug. 13697_ Gauss Rifle destroyed. Map ----- +----------------------------------------------------+ | ?????????????????????????????????????????????????? | | ?????????????????????????????????????????????????? | | ?????????????????????????????????????????????????? | | ?????????????????????????????????????????????????? | | ?????????????????????????????????????????????????? | | ?????????????????????????????????????????????????? | | ?????????????????????????????????????????????????? | | ?????????????????????????????????????????????????? | | ???????????????###????######?????????????????????? | | ???????????????# ##### ##????????????????????? | | ???????????????? ##???????????????????? | | ????????????????? ##??????????????????? | | ????????????????? ??# #??????????????????? | | ?????????????????# ??# #??????????????????? | | ?????????????????# ??# #??????????????????? | | ####?????????##### ??# ### #??????????????????? | | # ????????## #### #?# #??????????????????? | | # #???###### ##?# #??????????????????? | | # #?### ##??#s#??????????????????? | | # ### ####??##s#??????????????????? | | # ### ## #??#### #??????????????????? | | # ##???## ###??# ##?????????????????? | | # #????# ####?# g ##????????????????? | | #????# #?# ggg ##???????????????? | | #?##### #?# #???????????????? | | #??# ## ##?#@ ## #???????????????? | | #??# #??## ##?# #???????????????? | | #??# #???# #???###???????????????? | | #### ## #?? ?????????????????????? | | ## #######? ????????????????????? | | #####???# ???????????????????? | | ##??# ## ???????????????????? | | ## #??# ??? ??????????????????? | | ### ##??# ??? ##?????????????????? | | ## ###/#### ##???#???# ????#??????????????????? | | ## #" ????# " ##????????# ???????????????????????? | | # #"????? ###?????????##???????????????????????? | | #????? #????????????????????????????????????? | | #???? #????????????????????????????????????? | | #???? #????????????????????????????????????? | | #???# # #????????????????????????????????????? | | # #???####$#????????????????????????????????????? | | ## ????? #????????????????????????????????????? | | ### #????###????????????????????????????????????? | | ??? #???????????????????????????????????????????? | | ??? #???????????????????????????????????????????? | | ???#?#???????????????????????????????????????????? | | ?????????????????????????????????????????????????? | | ?????????????????????????????????????????????????? | | ?????????????????????????????????????????????????? | +----------------------------------------------------+ Best States ------------- Heat Dissipation 51 Energy Generation 19 Energy Capacity 500 Matter Stores 300 Matter Capacity 300 Sight Range 22 Robot Scan Range 20 Terrain Scan Range 20 Terrain Scan Density 210 Jamming Range 8 Cloak Strength 2 Armor Coverage 225 Resistance: KI 30 Evasion (%) 53 Targeting Accuracy 5 Target Analysis 6 Recoil Reduction 3 Kinecelleration 30 Offensive Hacking 10 Defensive Hacking 10 Item Schematics ----------------- None Robot Schematics ------------------ S-27 Virus | -6/Data Miner | Free G-50 Soldier | -6/Data Miner | Free G-67 Veteran | -6/Data Miner | Free L-41 Fighter | -6/Data Miner | Free P-70 Sage | -6/Data Miner | Free I-36 Angel | -6/Data Miner | Free I-47 Archangel | -6/Data Miner | Free Fabricated ------------ Nothing Alien Tech Used ----------------- None Achievements -------------- Dramatic Entrance Knowing Is Half The Battle Prolific Hacker \\IAMDERELICT Challenges ------------ None Game ------ Seed RegenerativeMiningSlayer Manual? 0 Play Time 02:02:17 Cumulative 38.6 hours Start 2021.09.26 @ 08:19:58 End 2021.09.26 @ 10:23:14 Sessions 1 Manual Loads 0 Difficulty Rogue Special Mode None Game No. 31 Rogue 30 Adventurer 1 Explorer 0 Win Type - Total 0 Types 0/0/0/0/0/0/0/0/0 Lore% 36 Gallery% 36 Achievement% 33 Wizard Run 0 Options --------- ASCII 0 Keyboard 0 Movement Mouse Keybinds 0 Fullscreen 2 Font 24/Smallcaps Map View 76x50 Tactical HUD 1 Map Filters NONE Filters NONE Steam 1 RUN: d632ea35-1718-4399-aec3-12b337b60ec5